bitfinex/quotes_ETHUSD_20230403
["timestamp","ask_amount","ask_price","bid_price","bid_amount"]
[1680531959785,7.90705027,1807.1,1806.9,0.95871102]
[1680531959986,7.90705027,1807.1,1807.0,0.0958711]
[1680531960186,7.90705027,1807.1,1807.0,0.3725711]
[1680531961742,7.90705027,1807.1,1807.0,0.9319711]
[1680531969189,7.90705027,1807.1,1807.0,0.3785711]
[1680531970627,7.90705027,1807.1,1807.0,0.9319711]
[1680531973901,7.90332657,1807.1,1807.0,0.9259711]
[1680531974109,7.90332657,1807.1,1807.0,6.7489711]
[1680531974296,7.90332657,1807.1,1807.0,6.7569711]
[1680531974918,7.90332657,1807.1,1807.0,0.1038711]
[1680531975137,7.90332657,1807.1,1806.9,6.6880082]
[1680531976495,7.90332657,1807.1,1806.9,0.5882982]
[1680531976695,7.90332657,1807.1,1806.9,0.5802982]
[1680531976900,7.90332657,1807.1,1806.8,0.9630182]
[1680531977102,7.90332657,1807.1,1806.8,1.83378773]
[1680531977530,7.90332657,1807.1,1806.9,0.5802982]
[1680531977737,7.90332657,1807.1,1806.9,0.8570082]
[1680531979217,11.29775708,1807.1,1806.8,1.55506773]
[1680531979415,11.29775708,1807.1,1806.8,0.6802982]
[1680531980840,11.29775708,1807.1,1806.8,0.9570282]
[1680531981050,11.29775708,1807.1,1806.8,0.6802982]
[1680531981204,11.29775708,1807.1,1806.8,0.9570282]
[1680531981902,11.29775708,1807.1,1806.8,1.82779773]
[1680531982100,11.30375708,1807.1,1806.9,0.5802982]
[1680531982533,11.30375708,1807.1,1806.8,1.82779773]
[1680531982711,11.30375708,1807.1,1806.8,1.55106773]
[1680531983041,11.30375708,1807.1,1806.8,1.82778773]
[1680531984032,11.30375708,1807.1,1806.9,0.5802982]
[1680531990964,11.30375708,1807.1,1806.8,1.82778773]
[1680531991125,11.30375708,1807.1,1806.9,0.5802982]
[1680532001472,11.30375708,1807.1,1806.9,0.5802982]
[1680532003993,3.89639789,1807.0,1806.8,1.55106773]
[1680532005273,3.89639789,1807.0,1806.9,0.5802982]
[1680532005959,3.89639789,1807.0,1806.8,1.55106773]
[1680532006160,2.76602218,1807.0,1806.8,1.55106773]
[1680532006386,2.76602218,1807.0,1806.9,0.5802982]
[1680532006608,2.76602218,1807.0,1806.8,1.55106773]
[1680532007109,2.76602218,1807.0,1806.9,0.5802982]
[1680532007261,3.89639789,1807.0,1806.9,0.5802982]
[1680532007794,3.89639789,1807.0,1806.8,1.55106773]
[1680532007965,2.76602218,1807.0,1806.8,1.55106773]
[1680532008162,2.76602218,1807.0,1806.9,0.5802982]
[1680532008374,2.76602218,1807.0,1806.8,1.55106773]
[1680532008976,2.76602218,1807.0,1806.9,0.5802982]
[1680532009481,2.76602218,1807.0,1806.9,0.5302982]
[1680532009864,2.76602218,1807.0,1806.8,0.97076953]
[1680532010595,2.76602218,1807.0,1806.8,0.1]
[1680532010759,3.89639789,1807.0,1806.8,0.1]
[1680532010966,3.89639789,1807.0,1806.8,0.97076953]
[1680532011304,2.76602218,1807.0,1806.8,0.97076953]
[1680532012465,2.76602218,1807.0,1806.8,1.24748953]
[1680532012666,2.76602218,1807.0,1806.8,0.97076953]
[1680532017772,2.76602218,1807.0,1806.8,1.80095953]
[1680532018487,7.90932657,1807.1,1806.9,0.87076953]
[1680532018689,7.90932657,1807.1,1807.0,1.78794648]
[1680532021033,7.90332657,1807.1,1807.0,1.78794648]
[1680532023008,7.90332657,1807.1,1807.0,1.23454648]
[1680532023606,7.90332657,1807.1,1807.0,0.87076953]
[1680532023831,10.66934875,1807.1,1807.0,0.58031513]
[1680532023996,10.66934875,1807.1,1807.0,0.57771231]
[1680532026710,10.67534875,1807.1,1806.9,0.87076953]
[1680532026910,10.67534875,1807.1,1806.8,0.1]
[1680532026911,0.22137,1806.9,1806.8,0.1]
[1680532027110,3.45702218,1806.9,1806.8,0.1]
[1680532028198,3.46302218,1806.9,1806.8,0.1]
[1680532029856,3.68439218,1806.9,1806.8,0.1]
[1680532030017,4.81048489,1806.9,1806.8,0.1]
[1680532030531,4.83318233,1806.9,1806.8,0.1]
[1680532030904,5.27592233,1806.9,1806.8,0.1]
[1680532031100,11.10092233,1806.9,1806.8,0.1]
[1680532034213,4.61381233,1806.9,1806.8,0.1]
[1680532034422,3.48571962,1806.9,1806.8,0.1]
[1680532034835,3.70708962,1806.9,1806.8,0.1]
[1680532036750,9.53008962,1806.9,1806.8,0.1]
[1680532037065,9.53208962,1806.9,1806.8,0.1]
[1680532037278,9.97482962,1806.9,1806.8,0.1]
[1680532037426,11.23601307,1806.9,1806.8,0.1]
[1680532037628,10.79327307,1806.9,1806.8,0.1]
[1680532040753,11.79405143,1806.9,1806.8,0.1]
[1680532046227,11.35131143,1806.9,1806.8,0.1]
[1680532046557,11.12994143,1806.9,1806.8,0.1]
[1680532047451,11.35131143,1806.9,1806.8,0.1]
[1680532047830,4.74890307,1806.9,1806.8,0.1]
[1680532048023,4.96827307,1806.9,1806.8,0.1]
[1680532048357,10.78527307,1806.9,1806.8,0.09701691]
[1680532048554,10.78727307,1806.9,1806.8,0.09701691]
[1680532049534,11.23001307,1806.9,1806.8,0.09701691]
[1680532054166,10.78727307,1806.9,1806.8,0.09701691]
[1680532054340,4.74290307,1806.9,1806.8,0.09701691]
[1680532054540,4.74090307,1806.9,1806.8,0.09701691]
[1680532055156,4.96227307,1806.9,1806.8,0.09701691]
[1680532055355,4.74090307,1806.9,1806.8,0.09701691]
[1680532055972,4.96227307,1806.9,1806.8,0.09701691]
[1680532056320,4.74090307,1806.9,1806.8,0.09701691]
[1680532056634,4.96227307,1806.9,1806.8,0.09701691]
[1680532056830,2.76602218,1806.9,1806.8,0.09701691]
[1680532057438,2.76392187,1806.9,1806.8,0.09701691]
[1680532058027,0.002,1807.0,1806.8,0.09701691]
[1680532058226,7.90332657,1807.1,1806.8,0.09701691]
[1680532058440,10.66934875,1807.1,1806.8,0.09701691]
[1680532061626,7.90332657,1807.1,1806.8,1.61219691]
[1680532061825,7.90332657,1807.1,1806.9,0.16121969]
[1680532062858,7.90332657,1807.1,1806.9,0.43792969]
[1680532063671,7.90332657,1807.1,1806.9,0.16121969]
[1680532064374,7.90332657,1807.1,1806.9,0.43792969]
[1680532064771,7.90332657,1807.1,1806.9,0.16121969]
[1680532065275,7.90332657,1807.1,1806.9,0.43792969]
[1680532066269,7.90332657,1807.1,1806.9,0.16121969]
[1680532066478,7.90332657,1807.1,1806.9,0.43792969]
[1680532068753,7.90332657,1807.1,1806.9,0.99135969]
[1680532068957,7.90332657,1807.1,1807.0,0.09913597]
[1680532069168,7.90332657,1807.1,1807.0,0.37583597]
[1680532070054,7.90332657,1807.1,1807.0,0.09913597]
[1680532070567,7.90932657,1807.1,1806.9,0.43792969]
[1680532070740,7.90332657,1807.1,1806.9,0.16721969]
[1680532072053,7.90332657,1807.1,1806.9,0.16121969]
[1680532072777,7.90332657,1807.1,1806.8,1.06473691]
[1680532072979,7.90332657,1807.1,1806.8,0.10301691]
[1680532076587,7.90332657,1807.1,1806.8,0.37974691]
[1680532077189,7.90332657,1807.1,1806.8,0.10301691]
[1680532077752,7.90332657,1807.1,1806.8,0.37974691]
[1680532077961,7.90332657,1807.1,1806.8,1.06821397]
[1680532078178,7.90332657,1807.1,1806.8,0.79148397]
[1680532078485,7.90332657,1807.1,1806.8,1.06821397]
[1680532078693,7.89942078,1807.1,1806.8,1.06821397]
[1680532079475,7.89942078,1807.1,1806.8,0.79148397]
[1680532081468,7.89942078,1807.1,1806.8,1.06821397]
[1680532081668,7.89942078,1807.1,1806.9,0.1068214]
[1680532083270,7.89942078,1807.1,1806.8,0.37373691]
[1680532083474,7.89942078,1807.1,1806.8,0.09701691]
[1680532085174,7.89942078,1807.1,1806.8,0.37374691]
[1680532091322,7.89942078,1807.1,1807.0,0.685]
[1680532091502,0.002,1807.1,1807.0,1.5151]
[1680532091699,30.232,1807.4,1807.0,1.66661]
[1680532091897,2.77402218,1807.4,1807.0,1.66661]
[1680532092087,2.76602218,1807.4,1807.0,0.98161]
[1680532092285,2.76602218,1807.4,1807.1,0.098161]
[1680532092510,0.008,1807.6,1807.2,0.96767]
[1680532092701,2.76602218,1807.6,1807.2,1.52101]
[1680532092977,2.76602218,1807.6,1807.3,0.689]
[1680532093193,2.76602218,1807.6,1807.3,1.186641]
[1680532094606,2.76602218,1807.6,1807.3,1.739951]
[1680532095292,0.008,1807.8,1807.3,1.739951]
[1680532095494,2.76602218,1807.7,1807.3,17.546251]
[1680532095704,2.76602218,1807.7,1807.3,17.548251]
[1680532095910,2.76602218,1807.7,1807.4,1.7546251]
[1680532096178,2.76602218,1807.7,1807.5,0.82987]
[1680532098011,2.76602218,1807.7,1807.5,0.86387]
[1680532098185,0.008,1807.9,1807.5,0.82987]
[1680532098386,2.76602218,1807.9,1807.7,0.27659]
[1680532098587,5.058315,1808.0,1807.7,0.82977]
[1680532098823,0.450715,1808.0,1807.7,0.82977]
[1680532099121,0.442715,1808.0,1807.9,0.82968]
[1680532103216,0.43985739,1808.0,1807.9,0.83368]
[1680532103420,0.43985739,1808.0,1807.9,0.82968]
[1680532104542,0.43985739,1808.0,1807.9,6.65268]
[1680532104743,0.43985739,1808.0,1807.9,8.305378]
[1680532105301,0.43985739,1808.0,1807.9,8.311378]
[1680532107027,0.43985739,1808.0,1807.9,8.081378]
[1680532108598,0.43985739,1808.0,1807.9,2.258378]
[1680532108925,0.43985739,1808.0,1807.9,2.250378]
[1680532117134,0.11000001,1808.1,1807.9,2.250378]
[1680532117874,0.11000001,1808.1,1807.9,12.719478]
[1680532118039,0.11000001,1808.1,1808.0,1.2719478]
[1680532118243,0.11000001,1808.1,1808.0,1.5484878]
[1680532127210,0.10656519,1808.1,1808.0,1.5484878]
[1680532133340,0.10656519,1808.1,1808.0,1.54540462]
[1680532139291,0.10656519,1808.1,1808.0,1.39540462]
[1680532140479,0.10656519,1808.1,1808.0,1.67195462]
[1680532140809,0.10656519,1808.1,1808.0,7.77149462]
[1680532140972,0.10656519,1808.1,1808.0,7.77349462]
[1680532141504,0.10656519,1808.1,1808.0,8.35341831]
[1680532141673,0.10656519,1808.1,1808.0,7.77349462]
[1680532142577,0.10656519,1808.1,1808.0,9.22421385]
[1680532143678,0.10656519,1808.1,1808.0,9.07421385]
[1680532144492,0.10656519,1808.1,1808.0,8.20344432]
[1680532145307,0.10656519,1808.1,1808.0,9.07421385]
[1680532145709,0.10656519,1808.1,1808.0,7.37381432]
[1680532145915,0.10656519,1808.1,1808.0,9.07421385]
[1680532146448,0.10656519,1808.1,1808.0,8.49426415]
[1680532147276,0.10656519,1808.1,1808.0,9.07426176]
[1680532147478,0.10656519,1808.1,1808.0,9.07426129]
[1680532147713,0.10656519,1808.1,1808.0,9.07426226]
[1680532148098,0.10656519,1808.1,1808.0,8.20349273]
[1680532148421,0.10656519,1808.1,1808.0,8.49426415]
[1680532148580,0.10656519,1808.1,1808.0,8.72426415]
[1680532159111,0.10656519,1808.1,1808.0,9.27689768]
[1680532165343,0.10265913,1808.1,1808.0,13.41291986]
[1680532165725,0.10265913,1808.1,1808.0,10.64689768]
[1680532166003,0.10265913,1808.1,1808.0,9.27689768]
[1680532169107,0.10265913,1808.1,1808.0,14.25291986]
[1680532169344,0.10265913,1808.1,1808.0,15.22684637]
[1680532172334,8.00007991,1808.1,1808.0,17.35914691]
[1680532172529,8.00207991,1808.1,1808.0,16.21045087]
[1680532172722,8.00207991,1808.1,1808.0,15.92580125]
[1680532175348,8.00207991,1808.1,1808.0,14.54580125]
[1680532176343,8.00207991,1808.1,1808.0,16.67810179]
[1680532176724,8.00207991,1808.1,1808.0,15.23580125]
[1680532177734,8.00207991,1808.1,1808.0,16.67810179]
[1680532178013,8.00207991,1808.1,1808.0,18.52045087]
[1680532180039,8.00207991,1808.1,1808.0,17.83045087]
[1680532181542,8.00207991,1808.1,1808.0,18.98755789]
[1680532181744,8.00207991,1808.1,1808.0,17.83045087]
[1680532182059,8.00207991,1808.1,1808.0,18.51645087]
[1680532182622,8.00207991,1808.1,1808.0,18.52049756]
[1680532183862,8.00207991,1808.1,1808.0,17.07415033]
[1680532184061,8.00207991,1808.1,1808.0,18.52041052]
[1680532186953,7.99996597,1808.1,1808.0,18.52041052]
[1680532192027,7.99996597,1808.1,1808.0,17.83441052]
[1680532197363,7.99996597,1808.1,1808.0,18.45715033]
[1680532197572,0.006,1808.2,1808.0,17.48828571]
[1680532197878,0.11000001,1808.3,1808.1,17.14386706]
[1680532198176,0.11000001,1808.3,1808.2,15.55946162]
[1680532198378,0.11000001,1808.3,1808.2,21.5574838]
[1680532199003,0.11000001,1808.3,1808.2,32.1698838]
[1680532199286,0.11000001,1808.3,1808.2,30.72421218]
[1680532200385,0.11000001,1808.5,1808.2,30.72421218]
[1680532200386,0.11000001,1808.5,1808.4,5.823]
[1680532200556,0.11,1808.6,1808.4,23.08891643]
[1680532200761,0.11,1808.6,1808.5,29.20272218]
[1680532200979,0.11,1808.6,1808.5,35.00885218]
[1680532201141,0.11,1808.6,1808.5,36.74259643]
[1680532201778,0.11,1808.6,1808.5,40.06759643]
[1680532202155,0.11,1808.6,1808.5,40.75659643]
[1680532202889,0.11,1808.6,1808.5,37.43159643]
[1680532204989,0.11,1808.6,1808.5,36.45139624]
[1680532205375,0.11,1808.6,1808.5,35.00785218]
[1680532206174,0.11,1808.6,1808.5,36.74159643]
[1680532206378,0.11,1808.6,1808.5,71.74159643]
[1680532206884,0.11,1808.6,1808.5,72.0025125]
[1680532208494,0.11,1808.6,1808.5,75.3275125]
[1680532208673,0.11,1808.6,1808.5,73.88526941]
[1680532208873,0.11,1808.6,1808.5,75.32707917]
[1680532212106,0.11,1808.6,1808.5,75.03856264]
[1680532213259,0.11,1808.6,1808.5,74.34856264]
[1680532214308,0.11,1808.6,1808.5,75.7903724]
[1680532214604,0.11,1808.6,1808.5,74.34856264]
[1680532214793,0.07916101,1808.7,1808.5,74.34856264]
[1680532214991,0.07916101,1808.7,1808.6,10.14381068]
[1680532215311,0.07916101,1808.7,1808.6,17.52099068]
[1680532216994,0.07916101,1808.7,1808.6,52.52099068]
[1680532218017,0.07916101,1808.7,1808.6,53.67428391]
[1680532218201,0.07916101,1808.7,1808.6,52.52099068]
[1680532222125,0.07916101,1808.7,1808.6,53.20999068]
[1680532228038,0.07916101,1808.7,1808.6,51.60099068]
[1680532228196,0.07916101,1808.7,1808.6,52.17716912]
[1680532228403,0.07916101,1808.7,1808.6,51.60099068]
[1680532228603,0.07916101,1808.7,1808.6,67.45719068]
[1680532229508,0.07916101,1808.7,1808.6,67.68719068]
[1680532231750,0.07916101,1808.7,1808.6,51.83099068]
[1680532232785,0.07916101,1808.7,1808.6,13.60099068]
[1680532232911,0.07916101,1808.7,1808.6,10.54676895]
[1680532233107,0.07916101,1808.7,1808.6,9.97018]
[1680532234132,0.07916101,1808.7,1808.6,10.54676895]
[1680532234532,0.07916101,1808.7,1808.6,13.31279113]
[1680532234745,0.07916101,1808.7,1808.6,13.60099068]
[1680532235276,0.07916101,1808.7,1808.6,13.54288519]
[1680532235464,0.07916101,1808.7,1808.6,14.40767369]
[1680532235767,0.07916101,1808.7,1808.6,13.54288519]
[1680532235971,0.07916101,1808.7,1808.6,14.40767369]
[1680532236328,0.07916101,1808.7,1808.6,13.83099068]
[1680532236731,0.07916101,1808.7,1808.6,14.98428391]
[1680532236970,0.76616101,1808.7,1808.6,4.50726268]
[1680532237141,1.46216101,1808.7,1808.5,1.44466458]
[1680532237345,1.5262161,1808.6,1808.5,0.57714513]
[1680532237754,1.5322161,1808.6,1808.5,0.57714513]
[1680532237958,1.386,1808.6,1808.5,0.57714513]
[1680532238170,1.386,1808.6,1808.5,6.67661513]
[1680532238372,1.386,1808.6,1808.5,6.67861513]
[1680532239478,1.37693274,1808.6,1808.5,6.67861513]
[1680532240868,1.37693274,1808.6,1808.5,7.54413458]
[1680532242186,0.10185845,1808.7,1808.5,7.54413458]
[1680532242478,1.224,1808.6,1808.5,7.54413458]
[1680532242665,1.224,1808.6,1808.5,7.74992945]
[1680532242874,1.224,1808.6,1808.5,8.9053128]
[1680532243066,1.30316101,1808.7,1808.5,8.03770323]
[1680532243244,1.30316101,1808.7,1808.6,6.69054585]
[1680532243444,1.30316101,1808.7,1808.6,7.52190585]
[1680532244393,1.30316101,1808.7,1808.6,7.75190585]
[1680532244569,1.30316101,1808.7,1808.6,8.32616976]
[1680532244570,0.07916101,1808.7,1808.6,8.32616976]
[1680532244770,0.07916101,1808.7,1808.6,11.09219194]
[1680532245487,0.07916101,1808.7,1808.6,11.86038218]
[1680532246589,0.07916101,1808.7,1808.6,13.31287023]
[1680532247160,0.07916101,1808.7,1808.6,11.09687023]
[1680532247497,0.07916101,1808.7,1808.6,9.65038218]
[1680532247669,0.07916101,1808.7,1808.6,11.09699491]
[1680532248384,0.07916101,1808.7,1808.6,11.10299491]
[1680532248690,0.07916101,1808.7,1808.6,9.65638218]
[1680532249097,0.07916101,1808.7,1808.6,11.10297994]
[1680532249466,0.07916101,1808.7,1808.6,9.65638218]
[1680532249797,0.07916101,1808.7,1808.6,16.60012643]
[1680532250300,0.07916101,1808.7,1808.6,16.59412643]
[1680532250857,0.07916101,1808.7,1808.6,14.86638218]
[1680532252920,0.07916101,1808.7,1808.6,16.60137703]
[1680532254189,0.02916101,1808.7,1808.6,16.59537703]
[1680532255719,0.02916101,1808.7,1808.6,16.30663563]
[1680532255900,0.02916101,1808.7,1808.6,10.31372563]
[1680532256097,0.02916101,1808.7,1808.6,11.47092365]
[1680532256303,0.02916101,1808.7,1808.6,12.02383365]
[1680532256610,0.02916101,1808.7,1808.6,10.86663563]
[1680532257212,0.02916101,1808.7,1808.6,11.09663563]
[1680532261248,0.02916101,1808.7,1808.6,14.86038218]
[1680532262423,0.02916101,1808.7,1808.6,16.59537703]
[1680532263005,0.02916101,1808.7,1808.6,14.86038218]
[1680532264644,0.00016101,1808.7,1808.6,21.6956897]
[1680532264807,0.11000001,1808.8,1808.7,0.5]
[1680532265008,0.11000001,1808.8,1808.7,24.57101995]
[1680532265233,0.11000001,1808.8,1808.7,26.78301995]
[1680532265645,0.11000001,1808.8,1808.7,37.66121995]
[1680532266057,0.11000001,1808.8,1808.7,37.16121995]
[1680532266320,0.11000001,1808.9,1808.8,9.648]
[1680532266521,0.11000001,1808.9,1808.8,13.47529218]
[1680532266859,0.11000001,1808.9,1808.8,21.14339581]
[1680532267060,0.11000001,1808.9,1808.8,21.67739581]
[1680532267650,0.11000001,1808.9,1808.8,25.00239581]
[1680532267957,0.11000001,1808.9,1808.8,25.0018719]
[1680532268352,0.11000001,1808.9,1808.8,23.26629218]
[1680532268545,0.11000001,1808.9,1808.8,23.49629218]
[1680532272467,0.11000001,1808.9,1808.8,25.23089104]
[1680532276598,0.11000001,1808.9,1808.8,14.63029218]
[1680532276892,0.11000001,1808.9,1808.8,15.78436954]
[1680532277053,0.11000001,1808.9,1808.8,12.78436954]
[1680532277259,0.13269745,1808.9,1808.8,6.97907736]
[1680532277607,2.224,1808.8,1808.6,0.006]
[1680532277763,1.0,1808.6,1808.4,0.57742989]
[1680532278010,1.0,1808.5,1808.4,0.57742989]
[1680532278345,1.0,1808.5,1808.4,6.40042989]
[1680532278658,1.22466974,1808.5,1808.4,6.40242989]
[1680532279344,1.22466974,1808.5,1808.4,5.825]
[1680532279548,0.22466974,1808.5,1808.4,5.825]
[1680532281242,1.44866974,1808.5,1808.4,0.002]
[1680532281552,1.44866974,1808.5,1808.3,0.57742989]
[1680532281749,1.36586697,1808.4,1808.3,0.57742989]
[1680532281955,1.221,1808.4,1808.3,0.57742989]
[1680532282623,1.221,1808.4,1808.3,6.40042989]
[1680532282816,1.221,1808.4,1808.3,6.40242989]
[1680532283725,1.221,1808.4,1808.3,0.57942989]
[1680532284061,1.3431,1808.4,1808.3,0.57742989]
[1680532284213,1.3431,1808.4,1808.3,6.40042989]
[1680532284414,1.3431,1808.4,1808.3,6.40242989]
[1680532285313,1.3431,1808.4,1808.3,0.57942989]
[1680532285514,2.5671,1808.4,1808.2,0.57742989]
[1680532285748,0.13431,1808.3,1808.2,0.57742989]
[1680532287630,0.13431,1808.3,1808.1,1.71956665]
[1680532288154,0.13431,1808.3,1808.2,0.57742989]
[1680532288961,0.13431,1808.3,1808.1,1.71956665]
[1680532289462,0.13431,1808.3,1808.2,0.57742989]
[1680532289626,0.13431,1808.3,1808.1,1.71956665]
[1680532290359,0.13431,1808.3,1808.1,0.85395989]
[1680532292431,0.13431,1808.3,1808.1,0.57742989]
[1680532293068,1.13431,1808.3,1808.1,0.57742989]
[1680532293230,1.0,1808.1,1807.9,0.002]
[1680532293428,1.0,1807.7,1807.6,0.008]
[1680532293623,1.224,1807.7,1807.5,0.1]
[1680532293843,1.221,1807.6,1807.5,0.1]
[1680532298487,2.445,1807.6,1807.5,0.1]
[1680532298651,2.714393,1807.6,1807.5,0.1]
[1680532300864,2.714393,1807.6,1807.5,1.01825959]
[1680532306079,1.493393,1807.6,1807.5,1.01825959]
[1680532306781,1.224,1807.6,1807.5,1.01825959]
[1680532312120,1.224,1807.7,1807.5,1.01825959]
[1680532312985,1.47293,1807.7,1807.5,1.01825959]
[1680532313193,1.224,1807.7,1807.5,1.01825959]
[1680532316544,2.221,1807.9,1807.5,7.11786959]
[1680532316776,2.221,1807.9,1807.5,7.11986959]
[1680532317081,2.4537,1807.9,1807.5,7.11986959]
[1680532317647,2.4537,1807.9,1807.5,6.84325959]
[1680532319387,2.7026,1807.9,1807.5,6.84325959]
[1680532319792,2.7086,1807.9,1807.5,6.84325959]
[1680532320092,2.4597,1807.9,1807.5,6.84325959]
[1680532320251,2.4537,1807.9,1807.5,6.84325959]
[1680532320449,2.7026,1807.9,1807.5,6.84325959]
[1680532321244,2.4537,1807.9,1807.5,6.84325959]
[1680532322692,2.7026,1807.9,1807.5,7.41789414]
[1680532322870,0.24537,1807.8,1807.5,7.41789414]
[1680532324292,2.221,1807.9,1807.5,10.18391632]
[1680532324599,0.27758744,1808.0,1807.7,5.823]
[1680532324799,1.27758744,1808.0,1807.7,5.825]
[1680532324955,1.27158744,1808.0,1807.7,5.825]
[1680532327771,1.27158744,1808.0,1807.7,0.002]
[1680532327976,1.27158744,1808.0,1807.7,5.823]
[1680532328180,1.27158744,1808.0,1807.7,5.825]
[1680532328869,1.27158744,1808.0,1807.7,0.002]
[1680532329211,1.27158744,1808.0,1807.7,5.823]
[1680532329412,1.27158744,1808.0,1807.7,5.825]
[1680532329708,1.27158744,1808.0,1807.7,0.002]
[1680532329709,3.17090218,1808.0,1807.7,0.002]
[1680532329913,3.17690218,1808.0,1807.6,1.4675745]
[1680532330578,3.17690218,1808.0,1807.6,7.2905745]
[1680532330786,3.17690218,1808.0,1807.6,7.2925745]
[1680532331098,0.24892,1807.8,1807.6,7.2925745]
[1680532331293,0.56661022,1807.9,1807.6,7.2925745]
[1680532332116,1.78761022,1807.9,1807.6,7.2925745]
[1680532333696,1.78761022,1807.9,1807.7,0.57463455]
[1680532333909,1.78761022,1807.9,1807.7,1.44008843]
[1680532334496,1.53869022,1807.9,1807.7,1.44008843]
[1680532334685,1.221,1807.9,1807.7,1.44008843]
[1680532335529,1.221,1807.9,1807.8,0.57463455]
[1680532336130,2.43023218,1808.0,1807.8,0.57463455]
[1680532336282,1.43023218,1808.0,1807.8,0.57463455]
[1680532336614,2.42423218,1808.0,1807.8,0.57463455]
[1680532336823,2.43023218,1808.0,1807.8,0.57463455]
[1680532337122,2.67912218,1808.0,1807.8,0.57463455]
[1680532337779,2.67912218,1808.0,1807.9,0.86560676]
[1680532338216,1.43023218,1808.0,1807.9,0.86560676]
[1680532339925,2.43023218,1808.0,1807.9,0.86560676]
[1680532341103,2.67912218,1808.0,1807.9,0.58021267]
[1680532341788,2.43023218,1808.0,1807.9,0.58021267]
[1680532342116,2.67912218,1808.0,1807.9,0.58021267]
[1680532342343,2.43023218,1808.0,1807.9,0.58021267]
[1680532343223,2.67912218,1808.0,1807.9,0.58021267]
[1680532344430,2.43023218,1808.0,1807.9,0.58021267]
[1680532344619,2.67912218,1808.0,1807.9,0.58021267]
[1680532345023,2.43023218,1808.0,1807.9,0.58021267]
[1680532345408,2.67912218,1808.0,1807.9,0.58021267]
[1680532345924,2.67912218,1808.0,1807.9,1.42653126]
[1680532346118,5.94292436,1808.0,1807.9,1.42653126]
[1680532346337,5.94292436,1808.0,1807.9,0.84631859]
[1680532346338,7.16892436,1808.0,1807.9,0.84631859]
[1680532346639,12.99192436,1808.0,1807.9,0.84631859]
[1680532346848,1.0,1807.6,1807.5,1.54251436]
[1680532346987,1.0,1807.6,1807.5,0.1]
[1680532346988,13.76564218,1807.6,1807.5,0.1]
[1680532347189,15.1442064,1807.6,1807.5,0.01059639]
[1680532350253,5.8914164,1807.6,1807.5,0.01059639]
[1680532350759,4.51485218,1807.6,1807.5,0.01059639]
[1680532350955,4.51285218,1807.6,1807.5,0.01059639]
[1680532352140,5.73685218,1807.6,1807.5,0.01059639]
[1680532352341,5.73885218,1807.6,1807.5,0.01059639]
[1680532352542,5.76154962,1807.6,1807.5,0.01059639]
[1680532352854,7.02018158,1807.6,1807.5,0.01059639]
[1680532355037,14.06718158,1807.6,1807.5,0.01059639]
[1680532358646,16.27918158,1807.6,1807.5,0.01059639]
[1680532358847,14.06718158,1807.6,1807.5,0.01059639]
[1680532363659,16.50918158,1807.6,1807.5,0.00059639]
[1680532363862,19.50918158,1807.6,1807.5,0.00059639]
[1680532368924,25.01718158,1807.6,1807.4,0.00059639]
[1680532369125,16.21794034,1807.5,1807.4,0.00059639]
[1680532369277,6.823,1807.3,1807.2,0.1]
[1680532369622,19.50185218,1807.3,1807.2,0.1]
[1680532369786,23.7160374,1807.3,1807.2,0.1]
[1680532370102,20.2780374,1807.3,1807.2,0.1]
[1680532370283,20.2780374,1807.3,1807.2,0.05]
[1680532370695,22.4920374,1807.3,1807.2,0.05]
[1680532371093,20.2780374,1807.3,1807.2,0.05]
[1680532372311,21.5020374,1807.3,1807.2,0.05]
[1680532372520,24.51699371,1807.3,1807.1,0.1]
[1680532372727,16.41722592,1807.2,1807.1,0.1]
[1680532372913,19.40292336,1807.2,1807.1,0.1]
[1680532377803,34.04112336,1807.2,1807.1,0.1]
[1680532379131,1.0,1807.1,1807.0,0.1]
[1680532379334,17.51424452,1807.1,1807.0,0.1]
[1680532379632,22.73024452,1807.1,1807.0,0.1]
[1680532380220,22.73024452,1807.1,1806.9,0.1]
[1680532380400,16.28042218,1807.0,1806.9,0.1]
[1680532380601,18.49642218,1807.0,1806.9,0.1]
[1680532380802,20.91908263,1807.0,1806.9,0.1]
[1680532381414,6.923,1806.9,1806.8,0.09701691]
[1680532381739,18.10033218,1806.9,1806.8,1.691e-05]
[1680532381930,26.38377366,1806.9,1806.8,1.691e-05]
[1680532383458,27.59677366,1806.9,1806.8,1.691e-05]
[1680532383953,27.6194711,1806.9,1806.8,1.691e-05]
[1680532389126,26.6194711,1806.9,1806.8,1.691e-05]
[1680532390848,25.4064711,1806.9,1806.8,1.691e-05]
[1680532392837,25.3064711,1806.9,1806.8,1.691e-05]
[1680532395656,25.3064711,1806.9,1806.7,1.691e-05]
[1680532395851,15.57366929,1806.8,1806.7,1.691e-05]
[1680532396043,18.53682929,1806.8,1806.7,1.691e-05]
[1680532399034,19.3377856,1806.8,1806.7,1.691e-05]
[1680532399659,18.53682929,1806.8,1806.7,1.691e-05]
[1680532402334,19.09206749,1806.8,1806.7,1.691e-05]
[1680532405261,17.86806749,1806.8,1806.7,1.691e-05]
[1680532408977,17.87406749,1806.8,1806.4,0.05001691]
[1680532409176,8.58902218,1806.5,1806.4,0.05001691]
[1680532409358,8.84012218,1806.5,1806.4,0.05001691]
[1680532410044,8.84012218,1806.5,1806.4,0.93002404]
[1680532414174,2.76802218,1806.5,1806.4,0.93002404]
[1680532414369,2.76602218,1806.5,1806.4,0.93002404]
[1680532415544,2.76602218,1806.5,1806.4,1.39961644]
[1680532415949,2.76602218,1806.5,1806.4,1.40361644]
[1680532416153,2.76602218,1806.5,1806.4,1.12682644]
[1680532416473,2.76602218,1806.5,1806.4,1.12282644]
[1680532416880,2.76602218,1806.5,1806.4,1.39961644]
[1680532417079,2.76602218,1806.5,1806.4,1.12282644]
[1680532417994,2.76602218,1806.5,1806.4,0.93002404]
[1680532418695,8.58902218,1806.5,1806.4,0.93002404]
[1680532418875,8.59102218,1806.5,1806.4,0.93402404]
[1680532419653,2.76802218,1806.5,1806.4,0.93402404]
[1680532419859,2.76602218,1806.5,1806.4,0.93002404]
[1680532420588,2.76602218,1806.5,1806.4,1.20892332]
[1680532420820,2.76602218,1806.5,1806.4,2.42292332]
[1680532420982,2.76602218,1806.5,1806.4,2.42892332]
[1680532421568,2.76602218,1806.5,1806.4,3.28388206]
[1680532421778,2.76602218,1806.5,1806.4,3.00709206]
[1680532422157,2.76602218,1806.5,1806.4,2.42892332]
[1680532422395,2.76602218,1806.5,1806.4,2.72819278]
[1680532422984,2.76602218,1806.5,1806.4,3.00498278]
[1680532423493,2.76602218,1806.5,1806.4,2.72819278]
[1680532425095,2.76602218,1806.5,1806.4,1.51419278]